[Event "Klubbmästerskap 2025 Tisdag"]
[Site "Linköping, Sweden"]
[Date "2025.02.25"]
[Round "5.5"]
[White "Nagy, Mate 2009"]
[Black "Halvarsson, Peter"]
[Result "1-0"]
[TimeControl "90 min + 30 sec/move"]
[WhiteElo "1917"]
[BlackElo "1927"]

1. e4 {[%clk 01:30:56]} {[%emt 00:00:04]} c5 {[%clk 01:29:30]} {[%emt
00:01:30]} 2. Nf3 {[%clk 01:31:13]} {[%emt 00:00:13]} g6 {[%clk 01:29:54]}
{[%emt 00:00:05]} 3. c3 {[%clk 01:30:43]} {[%emt 00:01:01]} Bg7 {[%clk
01:30:18]} {[%emt 00:00:05]} 4. d4 {[%clk 01:30:29]} {[%emt 00:00:44]} cxd4
{[%clk 01:30:43]} {[%emt 00:00:06]} 5. cxd4 {[%clk 01:30:38]} {[%emt 00:00:22]}
d5 {[%clk 01:31:07]} {[%emt 00:00:04]} 6. e5 {[%clk 01:30:38]} {[%emt
00:00:30]} Bg4 {[%clk 01:31:31]} {[%emt 00:00:06]} 7. Nc3 {[%clk 01:28:36]}
{[%emt 00:02:31]} Nh6 {[%clk 01:29:51]} {[%emt 00:02:10]} 8. Bxh6 {[%clk
01:19:43]} {[%emt 00:09:23]} Bxh6 {[%clk 01:29:31]} {[%emt 00:00:49]} 9. h3
{[%clk 01:18:57]} {[%emt 00:01:16]} Bxf3 {[%clk 01:29:08]} {[%emt 00:00:54]} 10.
Qxf3 {[%clk 01:19:14]} {[%emt 00:00:13]} e6 {[%clk 01:29:17]} {[%emt 00:00:21]}
11. Bb5+ {[%clk 01:11:47]} {[%emt 00:07:57]} Nc6 {[%clk 01:28:50]} {[%emt
00:00:58]} 12. O-O {[%clk 01:10:57]} {[%emt 00:01:20]} Qb6 {[%clk 01:19:23]}
{[%emt 00:09:56]} 13. Bxc6+ {[%clk 01:06:39]} {[%emt 00:04:47]} Qxc6 {[%clk
01:18:25]} {[%emt 00:01:28]} 14. Qd3 {[%clk 01:04:22]} {[%emt 00:02:47]} a6
{[%clk 01:18:19]} {[%emt 00:00:37]} 15. f4 {[%clk 01:02:18]} {[%emt 00:02:33]}
b5 {[%clk 01:07:43]} {[%emt 00:11:06]} 16. Rac1 {[%clk 01:01:20]} {[%emt
00:01:28]} Qb6 {[%clk 01:08:07]} {[%emt 00:00:07]} 17. Ne2 {[%clk 01:00:27]}
{[%emt 00:01:23]} Kd7 {[%clk 01:06:51]} {[%emt 00:01:47]} 18. g4 {[%clk
00:49:12]} {[%emt 00:11:45]} Rac8 {[%clk 00:57:26]} {[%emt 00:09:55]} 19. Rcd1
{[%clk 00:46:03]} {[%emt 00:03:39]} Rc7 {[%clk 00:45:15]} {[%emt 00:12:42]} 20.
f5 {[%clk 00:41:52]} {[%emt 00:04:40]} Kc8 {[%clk 00:42:04]} {[%emt 00:03:42]}
21. fxe6 {[%clk 00:41:28]} {[%emt 00:00:53]} fxe6 {[%clk 00:42:05]} {[%emt
00:00:29]} 22. Nc3 {[%clk 00:38:31]} {[%emt 00:03:27]} Rf8 {[%clk 00:34:41]}
{[%emt 00:07:53]} 23. h4 {[%clk 00:33:05]} {[%emt 00:05:56]} Rcf7 {[%clk
00:23:20]} {[%emt 00:11:52]} 24. g5 {[%clk 00:28:21]} {[%emt 00:05:14]} Bg7
{[%clk 00:22:46]} {[%emt 00:01:04]} 25. Rxf7 {[%clk 00:28:02]} {[%emt
00:00:49]} Rxf7 {[%clk 00:23:11]} {[%emt 00:00:06]} 26. Rf1 {[%clk 00:28:07]}
{[%emt 00:00:24]} Qa7 {[%clk 00:17:27]} {[%emt 00:06:14]} 27. Rxf7 {[%clk
00:24:48]} {[%emt 00:03:49]} Qxf7 {[%clk 00:17:52]} {[%emt 00:00:05]} 28. Qf1
{[%clk 00:25:13]} {[%emt 00:00:05]} Qxf1+ {[%clk 00:16:38]} {[%emt 00:01:44]}
29. Kxf1 {[%clk 00:25:39]} {[%emt 00:00:04]} Bf8 {[%clk 00:15:49]} {[%emt
00:01:18]} 30. Nd1 {[%clk 00:24:54]} {[%emt 00:01:14]} Kd7 {[%clk 00:14:38]}
{[%emt 00:01:42]} 31. Kf2 {[%clk 00:23:20]} {[%emt 00:02:04]} Bb4 {[%clk
00:09:50]} {[%emt 00:05:18]} 32. Ke2 {[%clk 00:20:17]} {[%emt 00:03:32]} Ke8
{[%clk 00:08:14]} {[%emt 00:02:08]} 33. a3 {[%clk 00:20:21]} {[%emt 00:00:26]}
Bf8 {[%clk 00:07:55]} {[%emt 00:00:48]} 34. Nf2 {[%clk 00:18:44]} {[%emt
00:02:07]} a5 {[%clk 00:03:43]} {[%emt 00:04:43]} 35. Ng4 {[%clk 00:18:11]}
{[%emt 00:01:01]} Ke7 {[%clk 00:03:33]} {[%emt 00:00:40]} 36. Nf6 {[%clk
00:17:53]} {[%emt 00:00:49]} h6 {[%clk 00:03:17]} {[%emt 00:00:46]} 37. gxh6
{[%clk 00:15:31]} {[%emt 00:02:52]} Kf7 {[%clk 00:03:36]} {[%emt 00:00:12]} 38.
h7 {[%clk 00:14:27]} {[%emt 00:01:34]} Kg7 {[%clk 00:02:17]} {[%emt 00:01:50]}
39. Nd7 {[%clk 00:11:21]} {[%emt 00:03:35]} Be7 {[%clk 00:02:15]} {[%emt
00:00:32]} 40. Nc5 {[%clk 00:11:29]} {[%emt 00:00:23]} Kxh7 {[%clk 00:01:54]}
{[%emt 00:00:51]} 41. Nxe6 {[%clk 00:11:40]} {[%emt 00:00:19]} Bxh4 {[%clk
00:02:18]} {[%emt 00:00:07]} 42. Nc7 {[%clk 00:11:41]} {[%emt 00:00:27]} b4
{[%clk 00:02:03]} {[%emt 00:00:46]} 43. axb4 {[%clk 00:11:16]} {[%emt
00:00:55]} axb4 {[%emt 00:00:06]} 44. Nxd5 {[%clk 00:11:42]} {[%emt 00:00:03]}
b3 {[%clk 00:02:46]} {[%emt 00:00:12]} 45. Nf4 {[%clk 00:10:42]} {[%emt
00:01:29]} Kg7 {[%clk 00:02:46]} {[%emt 00:00:30]} 46. Ne6+ {[%clk 00:10:38]}
{[%emt 00:00:34]} Kf7 {[%clk 00:03:02]} {[%emt 00:00:15]} 47. Nc5 {[%clk
00:10:55]} {[%emt 00:00:13]} Bg5 {[%clk 00:03:04]} {[%emt 00:00:26]} 48. Nxb3
{[%clk 00:11:06]} {[%emt 00:00:20]} Ke6 {[%clk 00:03:31]} {[%emt 00:00:02]} 49.
Kd3 {[%clk 00:10:51]} {[%emt 00:00:44]} Kd5 {[%clk 00:03:52]} {[%emt 00:00:09]}
50. Nc5 {[%clk 00:10:24]} {[%emt 00:00:59]} Bc1 {[%clk 00:01:39]} {[%emt
00:02:42]} 51. Na4 {[%clk 00:07:55]} {[%emt 00:02:59]} g5 {[%clk 00:01:29]}
{[%emt 00:00:40]} 52. Nc3+ {[%clk 00:08:07]} {[%emt 00:00:17]} Ke6 {[%clk
00:01:40]} {[%emt 00:00:18]} 53. b4 {[%clk 00:08:08]} {[%emt 00:00:30]} g4
{[%clk 00:01:39]} {[%emt 00:00:32]} 54. Ne4 {[%clk 00:07:30]} {[%emt 00:01:07]}
Bf4 {[%clk 00:01:19]} {[%emt 00:00:51]} 55. b5 {[%clk 00:06:04]} {[%emt
00:01:57]} g3 {[%clk 00:00:50]} {[%emt 00:00:59]} 56. Nxg3 {[%clk 00:06:25]}
{[%emt 00:00:09]} Bxg3 {[%clk 00:01:12]} {[%emt 00:00:07]} 57. Ke4 {[%clk
00:06:36]} {[%emt 00:00:19]} Be1 {[%clk 00:00:44]} {[%emt 00:00:59]} 58. d5+
{[%clk 00:06:54]} {[%emt 00:00:12]} Kd7 {[%clk 00:01:11]} {[%emt 00:00:02]} 59.
d6 {[%clk 00:06:59]} {[%emt 00:00:25]} Ba5 {[%clk 00:01:04]} {[%emt 00:00:37]}
60. Kd5 {[%clk 00:07:23]} {[%emt 00:00:06]} Bb6 {[%clk 00:00:34]} {[%emt
00:01:01]} 61. e6+ {[%clk 00:07:47]} {[%emt 00:00:06]} Kd8 {[%clk 00:00:37]}
{[%emt 00:00:27]} 62. Kc6 {[%clk 00:08:00]} {[%emt 00:00:16]} Ba7 {[%clk
00:00:31]} {[%emt 00:00:37]} 63. e7+ {[%clk 00:08:07]} {[%emt 00:00:23]} Ke8
{[%clk 00:01:00]} {[%emt 00:00:02]} 64. Kc7 {[%clk 00:08:25]} {[%emt 00:00:11]}
1-0

[Event "Klubbmästerskap 2025 Tisdag"]
[Site "Linköping, Sweden"]
[Date "2025.02.25"]
[Round "5.6"]
[White "Gustavsson, Rolf"]
[Black "Jakobsson, Leif"]
[Result "0-1"]
[TimeControl "90 min + 30 sec/move"]
[WhiteElo "1695"]
[BlackElo "1714"]

1. d4 Nf6 {[%emt 00:00:17]} 2. Bg5 {[%clk 01:30:35]} {[%emt 00:00:07]} d5
{[%clk 01:29:36]} {[%emt 00:01:25]} 3. Bxf6 {[%clk 01:30:45]} {[%emt 00:00:21]}
exf6 {[%clk 01:29:34]} {[%emt 00:00:31]} 4. e3 {[%clk 01:30:14]} {[%emt
00:01:00]} Bd6 {[%clk 01:25:58]} {[%emt 00:04:06]} 5. g3 {[%clk 01:30:12]}
{[%emt 00:00:33]} O-O {[%clk 01:25:34]} {[%emt 00:00:54]} 6. Bg2 {[%clk
01:29:54]} {[%emt 00:00:48]} c6 {[%clk 01:23:29]} {[%emt 00:02:35]} 7. Ne2
{[%clk 01:30:08]} {[%emt 00:00:16]} Qb6 {[%clk 01:20:42]} {[%emt 00:03:16]} 8.
Qc1 {[%clk 01:26:19]} {[%emt 00:04:20]} Bf5 {[%clk 01:16:56]} {[%emt 00:04:16]}
9. O-O {[%clk 01:21:30]} {[%emt 00:05:18]} Re8 {[%clk 01:13:55]} {[%emt
00:03:32]} 10. Nd2 {[%clk 01:18:53]} {[%emt 00:03:06]} Nd7 {[%clk 01:10:39]}
{[%emt 00:03:46]} 11. Re1 {[%clk 01:17:41]} {[%emt 00:01:42]} Nf8 {[%clk
01:08:36]} {[%emt 00:02:34]} 12. c3 {[%clk 01:11:35]} {[%emt 00:06:36]} Ne6
{[%clk 01:05:37]} {[%emt 00:03:28]} 13. b4 {[%clk 01:10:41]} {[%emt 00:01:24]}
Ng5 {[%clk 01:01:52]} {[%emt 00:04:15]} 14. a3 {[%clk 01:06:26]} {[%emt
00:04:46]} Nh3+ {[%clk 00:55:02]} {[%emt 00:07:19]} 15. Bxh3 {[%clk 01:05:41]}
{[%emt 00:01:15]} Bxh3 {[%clk 00:55:20]} {[%emt 00:00:12]} 16. Nb3 {[%clk
01:02:40]} {[%emt 00:03:32]} h5 {[%clk 00:53:00]} {[%emt 00:02:50]} 17. Nc5
{[%clk 00:55:49]} {[%emt 00:07:22]} Qc7 {[%clk 00:50:49]} {[%emt 00:02:39]} 18.
Nd3 {[%clk 00:54:43]} {[%emt 00:01:38]} g5 {[%clk 00:48:32]} {[%emt 00:02:46]}
19. f4 {[%clk 00:50:21]} {[%emt 00:04:52]} Qe7 {[%clk 00:44:06]} {[%emt
00:04:56]} 20. Kf2 {[%clk 00:46:34]} {[%emt 00:04:17]} Qe4 {[%clk 00:43:31]}
{[%emt 00:01:04]} 21. Rg1 {[%clk 00:43:53]} {[%emt 00:03:11]} Qxd3 {[%clk
00:42:52]} {[%emt 00:01:09]} 22. fxg5 {[%clk 00:42:34]} {[%emt 00:01:48]} fxg5
{[%clk 00:41:31]} {[%emt 00:01:52]} 23. e4 {[%clk 00:40:22]} {[%emt 00:02:41]}
Qxe4 {[%clk 00:37:07]} {[%emt 00:04:57]} 24. Qxg5+ {[%clk 00:38:19]} {[%emt
00:02:33]} Qg6 {[%clk 00:37:06]} {[%emt 00:00:29]} 25. Qh4 {[%clk 00:37:43]}
{[%emt 00:01:07]} Bg4 {[%clk 00:35:55]} {[%emt 00:01:41]} 26. Rae1 {[%clk
00:32:02]} {[%emt 00:06:11]} 0-1

[Event "Klubbmästerskap 2025 Tisdag"]
[Site "Linköping, Sweden"]
[Date "2025.02.25"]
[Round "5.7"]
[White "Andersson, Albin"]
[Black "Ivarsson, Simon"]
[Result "1/2-1/2"]
[TimeControl "90 min + 30 sec/move"]
[WhiteElo "1614"]
[BlackElo "1771"]

1. e4 {[%clk 01:30:57]} {[%emt 00:00:03]} c5 {[%clk 01:30:59]} {[%emt
00:00:02]} 2. Nf3 {[%clk 01:31:17]} {[%emt 00:00:10]} e6 {[%clk 01:31:21]}
{[%emt 00:00:08]} 3. g3 {[%clk 01:31:21]} {[%emt 00:00:26]} Nc6 {[%clk
01:31:42]} {[%emt 00:00:09]} 4. d3 {[%clk 01:31:25]} {[%emt 00:00:26]} b6
{[%clk 01:31:42]} {[%emt 00:00:30]} 5. Bg2 {[%clk 01:31:25]} {[%emt 00:00:31]}
Bb7 {[%clk 01:32:03]} {[%emt 00:00:08]} 6. Nbd2 {[%clk 01:31:07]} {[%emt
00:00:48]} Qc7 {[%clk 01:32:04]} {[%emt 00:00:29]} 7. c3 {[%clk 01:28:46]}
{[%emt 00:02:52]} Nf6 {[%clk 01:31:09]} {[%emt 00:01:24]} 8. O-O {[%clk
01:26:42]} {[%emt 00:02:33]} Be7 {[%clk 01:31:00]} {[%emt 00:00:39]} 9. Re1
{[%clk 01:24:16]} {[%emt 00:02:58]} d6 {[%clk 01:28:37]} {[%emt 00:02:53]} 10.
a3 {[%clk 01:19:37]} {[%emt 00:05:08]} O-O {[%clk 01:27:39]} {[%emt 00:01:29]}
11. b4 {[%clk 01:11:20]} {[%emt 00:08:47]} a6 {[%clk 01:26:11]} {[%emt
00:01:58]} 12. Qb3 {[%clk 01:02:38]} {[%emt 00:09:11]} h6 {[%clk 01:20:59]}
{[%emt 00:05:42]} 13. Bb2 {[%clk 00:57:57]} {[%emt 00:05:11]} Rfd8 {[%clk
01:16:04]} {[%emt 00:05:24]} 14. d4 {[%clk 00:50:18]} {[%emt 00:08:10]} Rd7
{[%clk 01:06:41]} {[%emt 00:09:53]} 15. a4 {[%clk 00:42:29]} {[%emt 00:08:19]}
Rb8 {[%clk 01:01:05]} {[%emt 00:06:05]} 16. Rad1 {[%clk 00:36:39]} {[%emt
00:06:20]} e5 {[%clk 00:58:10]} {[%emt 00:03:25]} 17. d5 {[%clk 00:35:48]}
{[%emt 00:01:22]} Na7 {[%clk 00:57:09]} {[%emt 00:01:31]} 18. b5 {[%clk
00:33:33]} {[%emt 00:02:46]} Rdd8 {[%clk 00:55:31]} {[%emt 00:02:07]} 19. Bc1
{[%clk 00:31:31]} {[%emt 00:02:32]} Qd7 {[%clk 00:50:38]} {[%emt 00:05:23]} 20.
c4 {[%clk 00:31:05]} {[%emt 00:00:57]} a5 {[%clk 00:50:27]} {[%emt 00:00:41]}
21. Nf1 {[%clk 00:30:02]} {[%emt 00:01:33]} Nh7 {[%clk 00:48:41]} {[%emt
00:02:16]} 22. Qd3 {[%clk 00:28:15]} {[%emt 00:02:18]} Rf8 {[%clk 00:46:54]}
{[%emt 00:02:17]} 23. Ne3 {[%clk 00:27:05]} {[%emt 00:01:40]} g6 {[%clk
00:44:59]} {[%emt 00:02:24]} 24. Nf1 {[%clk 00:22:35]} {[%emt 00:05:00]} Ng5
{[%clk 00:42:44]} {[%emt 00:02:44]} 25. h4 {[%clk 00:20:41]} {[%emt 00:02:25]}
Nxf3+ {[%clk 00:42:13]} {[%emt 00:00:59]} 26. Qxf3 {[%clk 00:20:57]} {[%emt
00:00:17]} Kg7 {[%clk 00:41:59]} {[%emt 00:00:43]} 27. Qe3 {[%clk 00:15:21]}
{[%emt 00:06:07]} Rh8 {[%clk 00:40:08]} {[%emt 00:02:21]} 28. Bb2 {[%clk
00:14:58]} {[%emt 00:00:53]} Rbf8 {[%clk 00:37:46]} {[%emt 00:02:50]} 29. Nh2
{[%clk 00:13:00]} {[%emt 00:02:29]} f5 {[%clk 00:34:59]} {[%emt 00:03:17]} 30.
Bh3 {[%clk 00:11:53]} {[%emt 00:01:37]} Bf6 {[%clk 00:29:52]} {[%emt 00:05:37]}
31. Rf1 {[%clk 00:09:12]} {[%emt 00:03:11]} f4 {[%clk 00:24:48]} {[%emt
00:05:34]} 32. gxf4 {[%clk 00:07:25]} {[%emt 00:02:17]} exf4 {[%clk 00:24:48]}
{[%emt 00:00:29]} 33. Bxf6+ {[%clk 00:07:44]} {[%emt 00:00:10]} Rxf6 {[%clk
00:25:07]} {[%emt 00:00:11]} 34. Bxd7 {[%clk 00:08:02]} {[%emt 00:00:12]} fxe3
{[%clk 00:25:29]} {[%emt 00:00:09]} 35. fxe3 {[%clk 00:08:24]} {[%emt
00:00:08]} Rhf8 {[%clk 00:25:25]} {[%emt 00:00:34]} 36. Rxf6 {[%clk 00:07:04]}
{[%emt 00:01:51]} Rxf6 {[%clk 00:24:17]} {[%emt 00:01:37]} 37. Rf1 {[%clk
00:07:03]} {[%emt 00:00:31]} h5 {[%clk 00:23:13]} {[%emt 00:01:34]} 38. Nf3
{[%clk 00:04:34]} {[%emt 00:02:59]} Bc8 {[%clk 00:22:49]} {[%emt 00:00:54]} 39.
Bxc8 {[%clk 00:03:54]} {[%emt 00:01:10]} Nxc8 {[%clk 00:23:07]} {[%emt
00:00:12]} 40. Kg2 {[%clk 00:03:40]} {[%emt 00:00:44]} Ne7 {[%clk 00:22:59]}
{[%emt 00:00:38]} 41. Kg3 {[%clk 00:03:30]} {[%emt 00:00:41]} Ng8 {[%clk
00:20:58]} {[%emt 00:02:30]} 42. Nd2 {[%clk 00:02:58]} {[%emt 00:01:02]} Rxf1
{[%clk 00:18:59]} {[%emt 00:02:29]} 43. Nxf1 {[%clk 00:03:23]} {[%emt
00:00:05]} Kf6 {[%clk 00:19:23]} {[%emt 00:00:05]} 44. Kf4 {[%clk 00:03:27]}
{[%emt 00:00:26]} Nh6 {[%clk 00:19:25]} {[%emt 00:00:28]} 45. Nh2 {[%clk
00:03:12]} {[%emt 00:00:46]} Nf7 {[%clk 00:19:04]} {[%emt 00:00:50]} 46. Nf3
{[%clk 00:02:19]} {[%emt 00:01:23]} Ne5 {[%clk 00:19:14]} {[%emt 00:00:20]} 47.
Nxe5 {[%clk 00:02:26]} {[%emt 00:00:23]} dxe5+ {[%clk 00:19:33]} {[%emt
00:00:11]} 48. Kg3 {[%clk 00:02:21]} {[%emt 00:00:36]} Ke7 {[%clk 00:19:49]}
{[%emt 00:00:06]} 49. Kf3 {[%clk 00:02:44]} {[%emt 00:00:14]} 1/2-1/2

[Event "Klubbmästerskap 2025 Tisdag"]
[Site "Linköping, Sweden"]
[Date "2025.02.25"]
[Round "5.8"]
[White "Modéer, Björn"]
[Black "Larsson, Emma 2008"]
[Result "0-1"]
[TimeControl "90 min + 30 sec/move"]
[WhiteElo "1700"]
[BlackElo "1754"]

1. d4 {[%clk 01:30:56]} {[%emt 00:00:03]} Nf6 {[%clk 01:30:54]} {[%emt
00:00:07]} 2. Bf4 {[%clk 01:31:16]} {[%emt 00:00:10]} g6 {[%clk 01:31:01]}
{[%emt 00:00:23]} 3. Nc3 {[%clk 01:31:01]} {[%emt 00:00:44]} Bg7 {[%clk
01:30:54]} {[%emt 00:00:38]} 4. e4 {[%clk 01:30:56]} {[%emt 00:00:34]} d6
{[%clk 01:31:09]} {[%emt 00:00:15]} 5. Qd2 {[%clk 01:26:51]} {[%emt 00:04:35]}
O-O {[%clk 01:30:37]} {[%emt 00:01:03]} 6. Bh6 {[%clk 01:25:17]} {[%emt
00:02:04]} Nbd7 {[%clk 01:26:11]} {[%emt 00:04:56]} 7. Bxg7 {[%clk 01:22:21]}
{[%emt 00:03:26]} Kxg7 {[%clk 01:25:28]} {[%emt 00:01:13]} 8. O-O-O {[%clk
01:19:14]} {[%emt 00:03:37]} c5 {[%clk 01:24:35]} {[%emt 00:01:23]} 9. e5
{[%clk 01:18:40]} {[%emt 00:01:03]} Ne8 {[%clk 01:16:56]} {[%emt 00:08:09]} 10.
exd6 {[%clk 01:11:34]} {[%emt 00:07:36]} exd6 {[%clk 01:09:34]} {[%emt
00:07:52]} 11. h4 {[%clk 01:08:15]} {[%emt 00:03:49]} Nef6 {[%clk 01:05:19]}
{[%emt 00:04:45]} 12. f3 {[%clk 01:05:12]} {[%emt 00:03:33]} h5 {[%clk
00:53:52]} {[%emt 00:11:57]} 13. Be2 {[%clk 01:01:09]} {[%emt 00:04:34]} a6
{[%clk 00:48:36]} {[%emt 00:05:46]} 14. g4 {[%clk 00:54:32]} {[%emt 00:07:06]}
b5 {[%clk 00:46:26]} {[%emt 00:02:41]} 15. Ne4 {[%clk 00:50:02]} {[%emt
00:04:59]} Qc7 {[%clk 00:35:43]} {[%emt 00:11:12]} 16. gxh5 {[%clk 00:44:14]}
{[%emt 00:06:19]} Nxh5 {[%clk 00:33:09]} {[%emt 00:03:04]} 17. f4 {[%clk
00:40:48]} {[%emt 00:03:57]} Ndf6 {[%clk 00:31:33]} {[%emt 00:02:05]} 18. Nxf6
{[%clk 00:36:24]} {[%emt 00:04:54]} Nxf6 {[%clk 00:30:12]} {[%emt 00:01:52]} 19.
Nf3 {[%clk 00:30:57]} {[%emt 00:05:56]} Bf5 {[%clk 00:25:34]} {[%emt 00:05:07]}
20. Rdg1 {[%clk 00:26:01]} {[%emt 00:05:28]} Rh8 {[%clk 00:23:48]} {[%emt
00:02:15]} 21. Bd3 {[%clk 00:21:17]} {[%emt 00:05:14]} Bxd3 {[%clk 00:17:37]}
{[%emt 00:06:41]} 22. Qxd3 {[%clk 00:20:49]} {[%emt 00:00:58]} c4 {[%clk
00:17:17]} {[%emt 00:00:50]} 23. Qf5 {[%clk 00:16:03]} {[%emt 00:05:15]} Rh5
{[%clk 00:15:23]} {[%emt 00:02:24]} 24. Rg5 {[%clk 00:14:27]} {[%emt 00:02:06]}
c3 {[%clk 00:14:20]} {[%emt 00:01:34]} 25. Rhg1 {[%clk 00:13:15]} {[%emt
00:01:40]} Rxg5 {[%clk 00:11:58]} {[%emt 00:02:52]} 26. Rxg5 {[%emt 00:05:14]}
Qc4 {[%clk 00:09:42]} 27. Qd3 {[%clk 00:08:38]} {[%emt 00:03:09]} Qxa2 {[%clk
00:09:23]} {[%emt 00:00:49]} 28. bxc3 {[%clk 00:06:58]} {[%emt 00:02:11]} Re8
{[%clk 00:09:11]} {[%emt 00:00:43]} 29. Nd2 {[%clk 00:06:34]} {[%emt 00:00:53]}
Re1# {[%clk 00:09:24]} {[%emt 00:00:17]} 0-1

[Event "Klubbmästerskap 2025 Tisdag"]
[Site "Linköping, Sweden"]
[Date "2025.02.25"]
[Round "5.9"]
[White "Andersson, Fredrik 1969"]
[Black "Tonkin, Archie"]
[Result "1-0"]
[TimeControl "90 min + 30 sec/move"]
[WhiteElo "1746"]
[BlackElo "1657"]

1. d4 {[%clk 01:30:55]} {[%emt 00:00:03]} d5 {[%clk 01:30:33]} {[%emt
00:00:27]} 2. Nc3 {[%clk 01:31:19]} {[%emt 00:00:06]} e6 {[%clk 01:30:45]}
{[%emt 00:00:18]} 3. Bf4 {[%clk 01:31:39]} {[%emt 00:00:10]} a6 {[%clk
01:30:09]} {[%emt 00:01:06]} 4. e3 {[%clk 01:30:47]} {[%emt 00:01:22]} Nf6
{[%clk 01:29:40]} {[%emt 00:00:58]} 5. Bd3 {[%clk 01:29:29]} {[%emt 00:01:49]}
Nc6 {[%clk 01:29:17]} {[%emt 00:00:53]} 6. Nf3 {[%clk 01:23:35]} {[%emt
00:06:24]} h6 {[%clk 01:27:57]} {[%emt 00:01:49]} 7. a3 {[%clk 01:20:20]}
{[%emt 00:03:46]} g5 {[%clk 01:25:24]} {[%emt 00:03:03]} 8. Bg3 {[%clk
01:15:30]} {[%emt 00:05:20]} Bg7 {[%clk 01:23:56]} {[%emt 00:01:57]} 9. Ne5
{[%clk 01:06:54]} {[%emt 00:09:06]} Nxe5 {[%clk 01:21:29]} {[%emt 00:02:57]} 10.
Bxe5 {[%clk 01:03:38]} {[%emt 00:03:47]} O-O {[%clk 01:19:48]} {[%emt
00:02:11]} 11. h4 {[%clk 00:53:30]} {[%emt 00:10:38]} Ne8 {[%clk 01:13:09]}
{[%emt 00:07:08]} 12. Bxg7 {[%clk 00:47:56]} {[%emt 00:06:05]} Nxg7 {[%clk
01:11:57]} {[%emt 00:01:43]} 13. hxg5 {[%clk 00:45:14]} {[%emt 00:03:12]} Qxg5
{[%clk 01:11:10]} {[%emt 00:01:16]} 14. Qf3 {[%clk 00:45:04]} {[%emt 00:00:40]}
f5 {[%clk 01:04:57]} {[%emt 00:06:44]} 15. Qh3 {[%clk 00:36:37]} {[%emt
00:08:57]} Rf6 {[%clk 01:03:35]} {[%emt 00:01:51]} 16. Ne2 {[%clk 00:34:14]}
{[%emt 00:02:54]} Bd7 {[%clk 00:59:45]} {[%emt 00:04:20]} 17. O-O-O {[%clk
00:33:04]} {[%emt 00:01:40]} c6 {[%clk 00:57:10]} {[%emt 00:03:05]} 18. Nf4
{[%clk 00:30:29]} {[%emt 00:03:05]} b5 {[%clk 00:54:15]} {[%emt 00:03:25]} 19.
Be2 {[%clk 00:28:44]} {[%emt 00:02:15]} Be8 {[%clk 00:50:15]} {[%emt 00:04:30]}
20. g4 {[%clk 00:26:35]} {[%emt 00:02:39]} fxg4 {[%clk 00:42:27]} {[%emt
00:08:17]} 21. Bxg4 {[%clk 00:26:22]} {[%emt 00:00:43]} Bf7 {[%emt 00:13:03]}
22. Rdg1 {[%clk 00:25:42]} e5 {[%clk 00:26:49]} {[%emt 00:04:45]} 23. Bd7
{[%clk 00:25:08]} {[%emt 00:01:04]} Qxg1+ {[%clk 00:22:12]} {[%emt 00:05:07]}
24. Rxg1 {[%clk 00:25:33]} {[%emt 00:00:05]} exf4 {[%clk 00:22:10]} {[%emt
00:00:31]} 25. exf4 {[%clk 00:24:10]} {[%emt 00:01:53]} Kh7 {[%clk 00:20:14]}
{[%emt 00:02:25]} 26. Qh4 {[%clk 00:22:17]} {[%emt 00:02:23]} Rd6 {[%clk
00:16:52]} {[%emt 00:03:52]} 27. Qe7 {[%clk 00:22:13]} {[%emt 00:00:35]} Rg6
{[%clk 00:15:44]} {[%emt 00:01:37]} 28. Bf5 {[%clk 00:21:11]} {[%emt 00:01:32]}
Nxf5 {[%clk 00:13:05]} {[%emt 00:03:09]} 29. Qxf7+ {[%clk 00:21:35]} {[%emt
00:00:06]} Rg7 {[%clk 00:12:50]} {[%emt 00:00:40]} 30. Qxf5+ {[%clk 00:21:55]}
{[%emt 00:00:15]} Kh8 {[%clk 00:12:39]} {[%emt 00:00:40]} 31. Rxg7 {[%clk
00:20:23]} {[%emt 00:02:02]} Kxg7 {[%clk 00:13:06]} {[%emt 00:00:03]} 32. Qd7+
{[%clk 00:20:13]} {[%emt 00:00:40]} 1-0